fUST/lending_fUST_20250424
["ID","MTS","AMOUNT","RATE_DAILY","PERIOD"]
[358866258,1745496639302,-501.02104774,0.00019178,2]
[358866259,1745496639311,-1154.06,0.00019178,2]
[358866260,1745496639321,-500.0,0.00019178,2]
[358866261,1745496639330,-500.0,0.00019178,2]
[358866262,1745496639339,-557.71,0.00019178,2]
[358866263,1745496639349,-500.0,0.00019178,2]
[358866264,1745496639359,-1000.0,0.00019178,2]
[358866265,1745496639368,-500.0,0.00019178,2]
[358866266,1745496639378,-400.73634668,0.00019178,2]
[358866267,1745496639387,-500.0,0.00019178,2]
[358866268,1745496639396,-500.0,0.00019178,2]
[358866269,1745496639405,-500.0,0.00019178,2]
[358866270,1745496639415,-500.0,0.00019178,2]
[358866271,1745496639425,-639.40498532,0.00019178,2]
[358866272,1745496639434,-500.0,0.00019178,2]
[358866273,1745496639443,-500.0,0.00019178,2]
[358866274,1745496639452,-419.8076554,0.00019178,2]
[358866275,1745496639461,-500.0,0.00019178,2]
[358866276,1745496639470,-500.0,0.00019178,2]
[358866277,1745496639479,-824.28,0.00019178,2]
[358866278,1745496639489,-500.0,0.00019178,2]
[358866279,1745496639498,-275.60695391,0.00019178,2]
[358866280,1745496639507,-500.0,0.00019178,2]
[358866281,1745496639517,-500.0,0.00019178,2]
[358866282,1745496639526,-500.0,0.00019178,2]
[358866283,1745496639535,-500.0,0.00019178,2]
[358866284,1745496639544,-573.09,0.00019178,2]
[358866285,1745496639553,-500.0,0.00019178,2]
[358866286,1745496639563,-500.0,0.00019178,2]
[358866287,1745496639571,-532.14,0.00019178,2]
[358866288,1745496639580,-675.04,0.00019178,2]
[358866289,1745496639590,-500.0,0.00019178,2]
[358866290,1745496639599,-500.0,0.00019178,2]
[358866291,1745496639608,-542.16,0.00019178,2]
[358866292,1745496639617,-510.60520705,0.00019178,2]
[358866293,1745496639627,-500.0,0.00019178,2]
[358866294,1745496639636,-756.69,0.00019178,2]
[358866295,1745496639645,-500.0,0.00019178,2]
[358866296,1745496639654,-500.0,0.00019178,2]
[358866297,1745496639663,-730.77,0.00019178,2]
[358866298,1745496639675,-500.0,0.00019178,2]
[358866299,1745496639686,-500.0,0.00019178,2]
[358866300,1745496639695,-505.60450518,0.00019178,2]
[358866301,1745496639705,-506.15298993,0.00019178,2]
[358866302,1745496639714,-932.78,0.00019178,2]
[358866303,1745496639723,-500.0,0.00019178,2]
[358866304,1745496639732,-505.19616564,0.00019178,2]
[358866305,1745496639741,-500.0,0.00019178,2]
[358866306,1745496639751,-500.0,0.00019178,2]
[358866307,1745496639760,-1162.57,0.00019178,2]
[358866308,1745496639769,-500.0,0.00019178,2]
[358866309,1745496639778,-500.0,0.00019178,2]
[358866310,1745496639787,-500.0,0.00019178,2]
[358866311,1745496639797,-570.47,0.00019178,2]
[358866312,1745496639806,-500.0,0.00019178,2]
[358866313,1745496639815,-500.0,0.00019178,2]
[358866314,1745496639824,-500.0,0.00019178,2]
[358866315,1745496639833,-399.0784713,0.00019178,2]
[358866316,1745496639842,-500.0,0.00019178,2]
[358866317,1745496639851,-500.0,0.00019178,2]
[358866318,1745496639860,-504.93828522,0.00019178,2]
[358866319,1745496639870,-509.72264243,0.00019178,2]
[358866320,1745496639879,-505.18507414,0.00019178,2]
[358866321,1745496639889,-500.0,0.00019178,2]
[358866322,1745496639898,-500.0,0.00019178,2]
[358866323,1745496639907,-500.0,0.00019178,2]
[358866324,1745496639917,-185.65017959,0.00019178,2]
[358866325,1745496639926,-500.0,0.00019178,2]
[358866326,1745496639935,-500.0,0.00019178,2]
[358866327,1745496639945,-500.0,0.00019178,2]
[358866328,1745496639954,-500.0,0.00019178,2]
[358866329,1745496639963,-990.23,0.00019178,2]
[358866330,1745496639973,-500.0,0.00019178,2]
[358866331,1745496639982,-2323.48,0.00019178,2]
[358866332,1745496639991,-506.67288113,0.00019178,2]
[358866333,1745496640001,-500.0,0.00019178,2]
[358866334,1745496640010,-1190.13,0.00019178,2]
[358866335,1745496640020,-825.65,0.00019178,2]
[358866336,1745496640029,-500.0,0.00019178,2]
[358866337,1745496640039,-500.0,0.00019178,2]
[358866338,1745496640050,-500.0,0.00019178,2]
[358866339,1745496640060,-500.0,0.00019178,2]
[358866340,1745496640070,-650.08,0.00019178,2]
[358866341,1745496640079,-500.0,0.00019178,2]
[358866342,1745496640089,-501.62148324,0.00019178,2]
[358866343,1745496640099,-504.13450546,0.00019178,2]
[358866344,1745496640109,-500.0,0.00019178,2]
[358866345,1745496640119,-500.0,0.00019178,2]
[358866346,1745496640129,-500.0,0.00019178,2]
[358866347,1745496640139,-500.0,0.00019178,2]
[358866348,1745496640148,-620.34,0.00019178,2]
[358866349,1745496640158,-500.0,0.00019178,2]
[358866350,1745496640168,-524.41,0.00019178,2]
[358866351,1745496640178,-500.0,0.00019178,2]
[358866352,1745496640187,-500.0,0.00019178,2]
[358866353,1745496640197,-727.12,0.00019178,2]
[358866354,1745496640207,-1157.42,0.00019178,2]
[358866355,1745496640216,-500.0,0.00019178,2]
[358866356,1745496640225,-500.0,0.00019178,2]
[358866357,1745496640235,-606.32,0.00019178,2]
[358866358,1745496640244,-661.18,0.00019178,2]
[358866359,1745496640254,-500.0,0.00019178,2]
[358866360,1745496640265,-1489.7,0.00019178,2]
[358866361,1745496640275,-500.0,0.00019178,2]
[358866362,1745496640284,-500.0,0.00019178,2]
[358866363,1745496640294,-500.0,0.00019178,2]
[358866364,1745496640304,-500.0,0.00019178,2]
[358866365,1745496640314,-500.0,0.00019178,2]
[358866366,1745496640324,-581.67,0.00019178,2]
[358866367,1745496640334,-500.0,0.00019178,2]
[358866368,1745496640344,-500.0,0.00019178,2]
[358866369,1745496640354,-500.0,0.00019178,2]
[358866370,1745496640363,-500.0,0.00019178,2]
[358866371,1745496640372,-500.0,0.00019178,2]
[358866372,1745496640381,-151.0,0.00019178,2]
[358866373,1745496640390,-1118.79,0.00019178,2]
[358866374,1745496640400,-500.0,0.00019178,2]
[358866375,1745496640409,-2856.6,0.00019178,2]
[358866376,1745496640418,-500.0,0.00019178,2]
[358866377,1745496640427,-863.06,0.00019178,2]
[358866378,1745496640436,-500.0,0.00019178,2]
[358866379,1745496640445,-500.0,0.00019178,2]
[358866380,1745496640455,-500.0,0.00019178,2]
[358866381,1745496640463,-617.88511885,0.00019178,2]
[358866382,1745496640473,-500.0,0.00019178,2]
[358866383,1745496640482,-500.0,0.00019178,2]
[358866384,1745496640491,-500.0,0.00019178,2]
[358866385,1745496640502,-500.0,0.00019178,2]
[358866386,1745496640511,-1003.09,0.00019178,2]
[358866387,1745496640521,-504.6676617,0.00019178,2]
[358866388,1745496640530,-500.0,0.00019178,2]
[358866389,1745496640539,-596.18538446,0.00019178,2]
[358866390,1745496640549,-665.81,0.00019178,2]
[358866391,1745496640559,-500.0,0.00019178,2]
[358866393,1745496640571,-500.0,0.00019178,2]
[358866394,1745496640580,-500.0,0.00019178,2]
[358866396,1745496640589,-500.0,0.00019178,2]
[358866398,1745496640598,-659.12,0.00019178,2]
[358866400,1745496640607,-500.0,0.00019178,2]
[358866401,1745496640616,-754.12,0.00019178,2]
[358866403,1745496640626,-500.0,0.00019178,2]
[358866405,1745496640635,-500.0,0.00019178,2]
[358866407,1745496640645,-500.0,0.00019178,2]
[358866408,1745496640655,-500.0,0.00019178,2]
[358866410,1745496640664,-640.4,0.00019178,2]
[358866412,1745496640674,-1109.1,0.00019178,2]
[358866414,1745496640683,-500.0,0.00019178,2]
[358866415,1745496640692,-607.75,0.00019178,2]
[358866417,1745496640702,-500.0,0.00019178,2]
[358866419,1745496640711,-502.4122346,0.00019178,2]
[358866421,1745496640720,-500.0,0.00019178,2]
[358866423,1745496640729,-658.99,0.00019178,2]
[358866424,1745496640739,-500.0,0.00019178,2]
[358866426,1745496640748,-742.51,0.00019178,2]
[358866428,1745496640759,-500.0,0.00019178,2]
[358866430,1745496640769,-500.0,0.00019178,2]
[358866431,1745496640779,-500.0,0.00019178,2]
[358866433,1745496640788,-277.55965147,0.00019178,2]
[358866435,1745496640797,-518.42208749,0.00019178,2]
[358866437,1745496640807,-502.87061232,0.00019178,2]
[358866439,1745496640816,-1711.98,0.00019178,2]
[358866440,1745496640825,-773.99,0.00019178,2]
[358866442,1745496640834,-500.0,0.00019178,2]
[358866444,1745496640843,-500.0,0.00019178,2]
[358866445,1745496640852,-500.0,0.00019178,2]
[358866447,1745496640862,-500.0,0.00019178,2]
[358866449,1745496640871,-500.0,0.00019178,2]
[358866451,1745496640880,-500.0,0.00019178,2]
[358866452,1745496640889,-500.0,0.00019178,2]
[358866454,1745496640899,-674.14,0.00019178,2]
[358866456,1745496640908,-500.0,0.00019178,2]
[358866458,1745496640918,-500.0,0.00019178,2]
[358866459,1745496640931,-1008.29,0.00019178,2]
[358866461,1745496640940,-500.0,0.00019178,2]
[358866463,1745496640949,-500.0,0.00019178,2]
[358866465,1745496640959,-500.0,0.00019178,2]
[358866466,1745496640968,-500.0,0.00019178,2]
[358866468,1745496640978,-500.0,0.00019178,2]
[358866470,1745496640988,-508.63017885,0.00019178,2]
[358866472,1745496640998,-500.0,0.00019178,2]
[358866473,1745496641007,-500.0,0.00019178,2]
[358866475,1745496641017,-500.0,0.00019178,2]
[358866477,1745496641026,-500.0,0.00019178,2]
[358866479,1745496641036,-500.0,0.00019178,2]
[358866480,1745496641046,-500.0,0.00019178,2]
[358866482,1745496641056,-586.81,0.00019178,2]
[358866484,1745496641066,-500.0,0.00019178,2]
[358866486,1745496641075,-500.0,0.00019178,2]
[358866487,1745496641084,-500.0,0.00019178,2]
[358866489,1745496641095,-500.0,0.00019178,2]
[358866491,1745496641104,-500.0,0.00019178,2]
[358866493,1745496641113,-500.0,0.00019178,2]
[358866494,1745496641123,-500.0,0.00019178,2]
[358866496,1745496641133,-500.0,0.00019178,2]
[358866498,1745496641142,-500.0,0.00019178,2]
[358866500,1745496641152,-500.0,0.00019178,2]
[358866502,1745496641162,-516.36,0.00019178,2]
[358866503,1745496641172,-500.0,0.00019178,2]
[358866505,1745496641182,-500.0,0.00019178,2]
[358866507,1745496641191,-500.0,0.00019178,2]
[358866509,1745496641200,-537.58,0.00019178,2]
[358866510,1745496641210,-500.0,0.00019178,2]
[358866512,1745496641219,-500.0,0.00019178,2]
[358866514,1745496641228,-503.10909015,0.00019178,2]
[358866516,1745496641237,-500.0,0.00019178,2]
[358866517,1745496641247,-500.0,0.00019178,2]
[358866519,1745496641256,-500.0,0.00019178,2]
[358866521,1745496641265,-526.97,0.00019178,2]
[358866523,1745496641274,-500.0,0.00019178,2]
[358866524,1745496641283,-500.0,0.00019178,2]
[358866526,1745496641292,-500.0,0.00019178,2]
[358866528,1745496641302,-747.68,0.00019178,2]
[358866543,1745496641480,-500.0,0.00019178,2]
[358866545,1745496641489,-879.84,0.00019178,2]
[358866547,1745496641498,-803.73,0.00019178,2]
[358866548,1745496641507,-500.0,0.00019178,2]
[358866550,1745496641517,-500.0,0.00019178,2]
[358866552,1745496641526,-500.0,0.00019178,2]
[358866554,1745496641535,-980.05,0.00019178,2]
[358866555,1745496641544,-1716.18,0.00019178,2]
[358866557,1745496641554,-1333.25,0.00019178,2]
[358866559,1745496641563,-500.0,0.00019178,2]
[358866561,1745496641572,-500.0,0.00019178,2]
[358866562,1745496641581,-508.14850248,0.00019178,2]
[358866564,1745496641590,-500.0,0.00019178,2]
[358866566,1745496641599,-500.0,0.00019178,2]
[358866568,1745496641609,-1247.6,0.00019178,2]
[358866570,1745496641618,-500.0,0.00019178,2]
[358866572,1745496641627,-5742.29,0.00019178,2]
[358866573,1745496641638,-1028.16,0.00019178,2]
[358866575,1745496641647,-3023.75,0.00019178,2]
[358866577,1745496641656,-500.0,0.00019178,2]
[358866579,1745496641665,-500.0,0.00019178,2]
[358866581,1745496641675,-500.0,0.00019178,2]
[358866582,1745496641685,-786.54,0.00019178,2]
[358866584,1745496641695,-500.0,0.00019178,2]
[358866586,1745496641704,-500.0,0.00019178,2]
[358866588,1745496641713,-1957.57,0.00019178,2]
[358866589,1745496641723,-502.1,0.00019178,2]
[358866591,1745496641732,-1083.31,0.00019178,2]
[358866593,1745496641742,-245.04110683,0.00019178,2]
[358866595,1745496641751,-514.13,0.00019178,2]
[358866597,1745496641761,-607.15538036,0.00019178,2]
[358866598,1745496641770,-551.7,0.00019178,2]
[358866600,1745496641780,-500.0,0.00019178,2]
[358866602,1745496641789,-500.0,0.00019178,2]
[358866604,1745496641798,-500.0,0.00019178,2]
[358866605,1745496641807,-500.0,0.00019178,2]
[358866607,1745496641817,-748.92,0.00019178,2]
[358866609,1745496641826,-500.0,0.00019178,2]
[358866611,1745496641836,-280.27331324,0.00019178,2]
[358866613,1745496641845,-500.0,0.00019178,2]
[358866614,1745496641854,-500.0,0.00019178,2]
[358866616,1745496641864,-500.0,0.00019178,2]
[358866618,1745496641873,-500.0,0.00019178,2]
[358866620,1745496641882,-800.84,0.00019178,2]
[358866621,1745496641891,-500.0,0.00019178,2]
[358866623,1745496641900,-1611.32,0.00019178,2]
[358866625,1745496641909,-208.45867133,0.00019178,2]
[358866627,1745496641919,-593.93519418,0.00019178,2]
[358866629,1745496641936,-500.0,0.00019178,2]
[358866630,1745496641955,-1061.56,0.00019178,2]
[358866632,1745496641965,-500.0,0.00019178,2]
[358866634,1745496641974,-580.56,0.00019178,2]
[358866636,1745496641983,-500.0,0.00019178,2]
[358866638,1745496641992,-500.0,0.00019178,2]
[358866639,1745496642002,-503.23625298,0.00019178,2]
[358866641,1745496642011,-500.0,0.00019178,2]
[358866643,1745496642021,-500.0,0.00019178,2]
[358866645,1745496642030,-1536.75,0.00019178,2]
[358866647,1745496642039,-500.0,0.00019178,2]
[358866649,1745496642051,-500.0,0.00019178,2]
[358866650,1745496642061,-504.5770294,0.00019178,2]
[358866652,1745496642070,-500.0,0.00019178,2]
[358866654,1745496642079,-500.0,0.00019178,2]
[358866656,1745496642089,-515.64641614,0.00019178,2]
[358866658,1745496642099,-500.0,0.00019178,2]
[358866660,1745496642108,-500.0,0.00019178,2]
[358866661,1745496642118,-500.0,0.00019178,2]
[358866663,1745496642128,-508.83018846,0.00019178,2]
[358866665,1745496642137,-507.00802912,0.00019178,2]
[358866667,1745496642147,-513.81,0.00019178,2]
[358866669,1745496642156,-500.0,0.00019178,2]
[358866670,1745496642165,-946.07,0.00019178,2]
[358866672,1745496642176,-500.0,0.00019178,2]
[358866674,1745496642185,-500.0,0.00019178,2]
[358866676,1745496642195,-436.67521683,0.00019178,2]
[358866677,1745496642204,-500.0,0.00019178,2]
[358866679,1745496642214,-500.0,0.00019178,2]
[358866681,1745496642223,-500.0,0.00019178,2]
[358866683,1745496642233,-500.0,0.00019178,2]
[358866685,1745496642242,-500.0,0.00019178,2]
[358866686,1745496642252,-500.0,0.00019178,2]
[358866688,1745496642261,-500.0,0.00019178,2]
[358866690,1745496642271,-500.0,0.00019178,2]
[358866692,1745496642281,-500.0,0.00019178,2]
[358866694,1745496642290,-500.0,0.00019178,2]
[358866696,1745496642299,-500.0,0.00019178,2]
[358866697,1745496642308,-500.0,0.00019178,2]
[358866699,1745496642318,-500.0,0.00019178,2]
[358866701,1745496642327,-500.0,0.00019178,2]
[358866703,1745496642336,-167.32404216,0.00019178,2]
[358866705,1745496642345,-363.02685896,0.00019178,2]
[358866706,1745496642355,-1246.72,0.00019178,2]
[358866708,1745496642364,-500.0,0.00019178,2]
[358866710,1745496642374,-1067.91,0.00019178,2]
[358866712,1745496642384,-500.0,0.00019178,2]
[358866713,1745496642393,-500.0,0.00019178,2]
[358866715,1745496642403,-500.0,0.00019178,2]
[358866717,1745496642412,-500.0,0.00019178,2]
[358866719,1745496642422,-500.45262469,0.00019178,2]
[358866721,1745496642431,-5032.76,0.00019178,2]
[358866722,1745496642441,-500.0,0.00019178,2]
[358866724,1745496642450,-3069.06,0.00019178,2]
[358866726,1745496642459,-500.0,0.00019178,2]
[358866728,1745496642469,-500.0,0.00019178,2]
[358866730,1745496642478,-500.0,0.00019178,2]
[358866732,1745496642488,-500.0,0.00019178,2]
[358866733,1745496642497,-607.65,0.00019178,2]
[358866735,1745496642506,-500.0,0.00019178,2]
[358866737,1745496642516,-500.0,0.00019178,2]
[358866739,1745496642526,-754.67,0.00019178,2]
[358866741,1745496642535,-817.11,0.00019178,2]
[358866742,1745496642544,-500.0,0.00019178,2]
[358866744,1745496642554,-500.0,0.00019178,2]
[358866746,1745496642563,-921.72,0.00019178,2]
[358866748,1745496642573,-1338.62,0.00019178,2]
[358866750,1745496642582,-500.0,0.00019178,2]
[358866752,1745496642591,-500.0,0.00019178,2]
[358866754,1745496642601,-500.0,0.00019178,2]
[358866755,1745496642610,-266.99875747,0.00019178,2]
[358866757,1745496642619,-500.0,0.00019178,2]
[358866759,1745496642629,-500.0,0.00019178,2]
[358866761,1745496642638,-500.0,0.00019178,2]
[358866763,1745496642647,-500.0,0.00019178,2]
[358866764,1745496642656,-500.0,0.00019178,2]
[358866766,1745496642666,-4060.82,0.00019178,2]
[358866768,1745496642676,-500.0,0.00019178,2]
[358866770,1745496642685,-3949.63,0.00019178,2]
[358866772,1745496642694,-500.0,0.00019178,2]
[358866773,1745496642703,-500.0,0.00019178,2]
[358866775,1745496642714,-500.0,0.00019178,2]
[358866777,1745496642723,-1055.65,0.00019178,2]
[358866779,1745496642733,-500.0,0.00019178,2]
[358866781,1745496642742,-500.0,0.00019178,2]
[358866783,1745496642751,-823.98,0.00019178,2]
[358866784,1745496642760,-500.0,0.00019178,2]
[358866786,1745496642770,-868.16,0.00019178,2]
[358866788,1745496642780,-1405.9,0.00019178,2]
[358866790,1745496642790,-503.76834141,0.00019178,2]
[358866792,1745496642800,-500.0,0.00019178,2]
[358866793,1745496642809,-500.0,0.00019178,2]
[358866795,1745496642818,-500.0,0.00019178,2]
[358866797,1745496642827,-3969.07,0.00019178,2]
[358866799,1745496642836,-500.0,0.00019178,2]
[358866801,1745496642845,-722.19,0.00019178,2]
[358866803,1745496642855,-500.0,0.00019178,2]
[358866804,1745496642864,-12031.69,0.00019178,2]
[358866806,1745496642875,-500.0,0.00019178,2]
[358866808,1745496642885,-500.0,0.00019178,2]
[358866810,1745496642894,-500.0,0.00019178,2]
[358866812,1745496642903,-1005.37,0.00019178,2]
[358866814,1745496642912,-500.0,0.00019178,2]
[358866815,1745496642921,-3258.86,0.00019178,2]
[358866817,1745496642931,-500.0,0.00019178,2]
[358866819,1745496642940,-842.53,0.00019178,2]
[358866821,1745496642949,-500.0,0.00019178,2]
[358866823,1745496642959,-504.30502543,0.00019178,2]
[358866825,1745496642968,-500.0,0.00019178,2]
[358866826,1745496642978,-687.61,0.00019178,2]
[358866828,1745496642987,-505.9188295,0.00019178,2]
[358866830,1745496642997,-500.0,0.00019178,2]
[358866832,1745496643006,-500.0,0.00019178,2]
[358866834,1745496643015,-500.0,0.00019178,2]
[358866835,1745496643024,-500.0,0.00019178,2]
[358866837,1745496643033,-500.0,0.00019178,2]
[358866839,1745496643042,-500.0,0.00019178,2]
[358866841,1745496643054,-776.09,0.00019178,2]
[358866843,1745496643063,-500.0,0.00019178,2]
[358866845,1745496643072,-504.87985386,0.00019178,2]
[358866846,1745496643081,-618.37,0.00019178,2]
[358866848,1745496643091,-502.59668745,0.00019178,2]
[358866850,1745496643100,-3051.02,0.00019178,2]
[358866852,1745496643109,-500.0,0.00019178,2]
[358866854,1745496643118,-500.0,0.00019178,2]
[358866855,1745496643128,-500.0,0.00019178,2]
[358866857,1745496643137,-500.0,0.00019178,2]
[358866858,1745496643146,-500.0,0.00019178,2]
[358866859,1745496643156,-2772.06,0.00019178,2]
[358866860,1745496643165,-502.2314393,0.00019178,2]
[358866862,1745496643176,-931.38,0.00019178,2]
[358866863,1745496643185,-500.0,0.00019178,2]
[358866864,1745496643195,-502.88738888,0.00019178,2]
[358866865,1745496643205,-500.0,0.00019178,2]
[358866866,1745496643216,-500.0,0.00019178,2]
[358866867,1745496643227,-500.0,0.00019178,2]
[358866868,1745496643238,-1502.56,0.00019178,2]
[358866870,1745496643248,-500.0,0.00019178,2]
[358866871,1745496643258,-4239.52,0.00019178,2]
[358866872,1745496643267,-4154.45,0.00019178,2]
[358866873,1745496643277,-500.0,0.00019178,2]
[358866874,1745496643287,-923.99,0.00019178,2]
[358866875,1745496643296,-500.0,0.00019178,2]
[358866876,1745496643306,-300.0,0.00019178,2]
[358866877,1745496643315,-180.10105328,0.00019182,2]
[358866878,1745496643325,-153.0,0.00019205,2]
[358866879,1745496643335,-151.0,0.00019233,2]
[358866880,1745496643344,-151.0,0.00019288,2]
[358866881,1745496643354,-352.1726496,0.000193,2]
[358866882,1745496643364,-157.2502195,0.000193,2]
[358866883,1745496643375,-160.0,0.00019305,2]
[358866884,1745496643385,-840.0731918,0.00019305,2]
[358866885,1745496643394,-160.0,0.00019305,2]
[358866886,1745496643403,-160.0,0.00019305,2]
[358866887,1745496643413,-12576.49486522,0.00019305,2]
[358866888,1745496643422,-160.0,0.00019305,2]
[358866889,1745496643433,-420.89490186,0.00019305,2]
[358866890,1745496643443,-160.0,0.00019305,2]
[358866891,1745496643452,-160.0,0.00019305,2]
[358866892,1745496643461,-42035.88560457,0.00019334,2]
[358866894,1745496643484,-1239.08759919,0.00019334,2]
[358866895,1745496643597,-67.33119723,0.00019334,2]
[358866930,1745496644051,-47.99971434,0.00019178,2]
[358867197,1745496646717,-275.16655845,0.00019178,2]
[358867198,1745496646771,-176.83372721,0.00019178,2]
[358867199,1745496646782,-500.0,0.00019178,2]
[358867200,1745496646791,-1077.56627279,0.00019334,2]
[358867758,1745497595734,-152.68707532,0.00018476,2]
[358867759,1745497595757,-300.0,0.0001851,2]
[358867760,1745497595779,-437.19341496,0.0001851,2]
[358867761,1745497595801,-180.10105329,0.00018512,2]
[358867762,1745497595822,-3229.97420686,0.00018528,2]
[358867763,1745497595842,-500.0,0.00018573,2]
[358867764,1745497595864,-500.0,0.00018573,2]
[358867765,1745497595884,-500.0,0.00018573,2]
[358867766,1745497595903,-483.92450354,0.00018573,2]
[358867767,1745497595925,-500.0,0.00018573,2]
[358867768,1745497595945,-500.0,0.00018573,2]
[358867769,1745497595965,-500.0,0.00018573,2]
[358867770,1745497595987,-1216.11974603,0.00018578,2]
[358867771,1745497618166,1569.0,0.00015,2]
[358867833,1745497831864,-1023.0,0.00017541,2]
[358867834,1745497831874,-500.0,0.00017542,2]
[358867835,1745497831883,-378.43513895,0.00017542,2]
[358867836,1745497831892,-500.0,0.00017542,2]
[358867837,1745497831902,-500.0,0.00017542,2]
[358867838,1745497831911,-500.0,0.00017542,2]
[358867839,1745497831922,-201.94896919,0.00017542,2]
[358867840,1745497831931,-500.0,0.00017542,2]
[358867841,1745497831940,-500.0,0.00017542,2]
[358867842,1745497831949,-500.0,0.00017542,2]
[358867843,1745497831959,-500.0,0.00017542,2]
[358867844,1745497831968,-500.0,0.00017542,2]
[358867845,1745497831977,-245.69342835,0.00017542,2]
[358867846,1745497831986,-500.0,0.00017542,2]
[358867847,1745497831995,-405.13600572,0.00017542,2]
[358867848,1745497832004,-500.0,0.00017542,2]
[358867849,1745497832014,-500.0,0.00017542,2]
[358867850,1745497832024,-500.0,0.00017542,2]
[358867851,1745497832034,-500.0,0.00017542,2]
[358867852,1745497832043,-500.0,0.00017542,2]
[358867853,1745497832054,-500.0,0.00017542,2]
[358867854,1745497832064,-500.0,0.00017542,2]
[358867855,1745497832073,-7022.64342605,0.00017542,2]
[358867856,1745497832082,-740.5920688,0.00017543,2]
[358867857,1745497832091,-306.03539047,0.00018509,2]
[358867858,1745497832100,-1762.3708704,0.00018512,2]
[358867859,1745497832109,-180.10105328,0.00018512,2]
[358867860,1745497832118,-500.0,0.00018573,2]
[358867861,1745497832127,-500.0,0.00018573,2]
[358867862,1745497832137,-500.0,0.00018573,2]
[358867863,1745497832146,-500.0,0.00018573,2]
[358867864,1745497832155,-500.0,0.00018573,2]
[358867865,1745497832165,-87918.10173953,0.00018578,2]
[358867866,1745497832176,-6961.84092669,0.00018578,2]
[358867905,1745497837940,-3287.18794206,0.00018578,2]
[358867907,1745497837952,-1806.41131233,0.00018578,2]
[358867909,1745497837963,-268810.33833336,0.00018578,2]
[358867911,1745497837973,-222.7476,0.00018612,2]
[358867913,1745497837982,-180.10105328,0.00018727,2]
[358867915,1745497837991,-180.10105328,0.00018942,2]
[358867917,1745497838001,-288.05475448,0.00018999,2]
[358867919,1745497838011,-180.10105328,0.00019157,2]
[358867921,1745497838020,-500.0,0.00019173,2]
[358867923,1745497838030,-500.0,0.00019173,2]
[358867925,1745497838039,-500.0,0.00019178,2]
[358867927,1745497838048,-502.2594155,0.00019178,2]
[358867929,1745497838058,-500.0,0.00019178,2]
[358867931,1745497838066,-500.0,0.00019178,2]
[358867932,1745497838075,-500.0,0.00019178,2]
[358867933,1745497838084,-501.2635384,0.00019178,2]
[358867934,1745497838265,-500.0,0.00019178,2]
[358867935,1745497838277,-500.0,0.00019178,2]
[358867936,1745497838286,-500.0,0.00019178,2]
[358867937,1745497838296,-500.0,0.00019178,2]
[358867938,1745497838306,-500.0,0.00019178,2]
[358867939,1745497838318,-500.0,0.00019178,2]
[358867940,1745497838331,-506.15298993,0.00019178,2]
[358867941,1745497838340,-505.19616564,0.00019178,2]
[358867942,1745497838351,-502.74141632,0.00019178,2]